bitfinex/quotes_SOLUSD_20260202
["timestamp","ask_amount","ask_price","bid_price","bid_amount"]
[1770033913934,4.43797318,103.28,103.25,3.61100351]
[1770033914431,104.3190281,103.29,103.2,13.30056401]
[1770033914432,108.75700128,103.29,103.26,7.94397825]
[1770033914631,4.75700128,103.29,103.26,7.94397825]
[1770033914840,4.75700128,103.29,103.25,7.94397825]
[1770033915854,0.3190281,103.29,103.26,7.94397825]
[1770033916253,0.3190281,103.29,103.27,3.61100351]
[1770033916752,0.3190281,103.29,103.28,4.33297474]
[1770033917060,0.3190281,103.29,103.27,7.94397825]
[1770033917239,0.2,103.3,103.28,7.94397825]
[1770033917841,10.5051354,103.32,103.29,7.7756333]
[1770033918330,6.06716222,103.32,103.3,7.5756333]
[1770033918749,10.5051354,103.32,103.29,7.5756333]
[1770033919754,10.5051354,103.32,103.29,3.96462979]
[1770033920060,10.5051354,103.32,103.29,7.5756333]
[1770033920867,10.5051354,103.32,103.28,7.5756333]
[1770033921158,10.5051354,103.32,103.29,7.5756333]
[1770033921536,4.43797318,103.31,103.27,7.5756333]
[1770033922751,4.43797318,103.3,103.27,3.61100351]
[1770033922958,4.43797318,103.3,103.26,3.96462979]
[1770033922959,4.43797318,103.3,103.26,7.5756333]
[1770033923152,4.43797318,103.29,103.25,7.5756333]
[1770033923357,4.43797318,103.28,103.24,7.5756333]
[1770033923556,4.43797318,103.27,103.23,7.5756333]
[1770033923766,3.61100351,103.28,103.21,3.61100351]
[1770033923767,4.43797318,103.25,103.21,3.61100351]
[1770033923970,4.43797318,103.25,103.21,7.5756333]
[1770033924460,4.43797318,103.25,103.22,3.6119401]
[1770033924758,4.43797318,103.25,103.21,7.57656989]
[1770033926344,4.43797318,103.25,103.21,12.99484861]
[1770033927348,4.43797318,103.23,103.19,12.99484861]
[1770033927747,4.43797318,103.24,103.21,12.99484861]
[1770033927967,4.43797318,103.26,103.22,3.96462979]
[1770033928169,4.43797318,103.26,103.23,12.99484861]
[1770033928348,4.43797318,103.28,103.24,12.99484861]
[1770033928553,4.43797318,103.28,103.25,9.03021882]
[1770033928870,4.43797318,103.28,103.24,12.99484861]
[1770033929664,4.43797318,103.28,103.25,3.96462979]
[1770033929871,4.43797318,103.28,103.25,12.99484861]
[1770033930171,4.43797318,103.28,103.25,3.96462979]
[1770033930467,4.43797318,103.27,103.23,3.96462979]
[1770033930661,4.43797318,103.27,103.23,12.99484861]
[1770033931061,4.43797318,103.27,103.24,9.03021882]
[1770033932586,4.43797318,103.28,103.25,12.99484861]
[1770033932865,4.43797318,103.28,103.25,9.03021882]
[1770033934372,4.43797318,103.28,103.24,3.96462979]
[1770033934569,4.43797318,103.28,103.24,12.99484861]
[1770033934768,4.43797318,103.27,103.23,12.99484861]
[1770033936576,4.43797318,103.25,103.18,4.27527085]
[1770033936768,13.468192,103.24,103.2,9.03021882]
[1770033936975,13.468192,103.24,103.2,12.99484861]
[1770033937177,4.43797318,103.23,103.2,3.96462979]
[1770033937480,4.43797318,103.23,103.2,12.99484861]
[1770033937678,4.43797318,103.22,103.18,12.99484861]
[1770033937982,4.13540738,103.23,103.19,12.99484861]
[1770033940493,4.13540738,103.22,103.16,3.96462979]
[1770033940784,4.13540738,103.22,103.19,9.03021882]
[1770033941165,9.03021882,103.23,103.19,12.99484861]
[1770033941166,4.41973052,103.23,103.19,12.99484861]
[1770033941561,4.13540738,103.23,103.2,9.03021882]
[1770033941763,4.41973052,103.24,103.21,9.03021882]
[1770033942271,4.41973052,103.24,103.2,12.99484861]
[1770033942470,4.13540738,103.23,103.19,12.99484861]
[1770033945580,4.13540738,103.23,103.2,9.03021882]
[1770033945786,9.31454196,103.24,103.2,12.99484861]
[1770033945787,4.13540738,103.24,103.2,12.99484861]
[1770033945984,4.13540738,103.24,103.2,3.96462979]
[1770033946193,4.13540738,103.24,103.2,12.99484861]
[1770033947288,4.13540738,103.24,103.14,139.49489369]
[1770033947289,4.13540738,103.23,103.19,12.99484861]
[1770033947464,4.13540738,103.23,103.19,9.03021882]
[1770033947665,4.13540738,103.23,103.2,9.03021882]
[1770033948384,4.13540738,103.23,103.19,7.57806809]
[1770033949385,4.41724171,103.22,103.19,3.96462979]
[1770033949683,4.41724171,103.19,103.14,4.16462979]
[1770033949884,4.41724171,103.17,103.14,4.16462979]
[1770033950770,4.41724171,103.17,103.14,0.2]
[1770033950971,8.03068001,103.17,103.14,0.2]
[1770033951271,4.41724171,103.16,103.14,0.2]
[1770033955476,4.41724171,103.17,103.14,9.24563831]
[1770033956092,108.41724171,103.19,103.16,13.0102681]
[1770033956388,104.0,103.19,103.17,9.04563831]
[1770033956589,4.41724171,103.2,103.17,9.04563831]
[1770033957494,4.41724171,103.2,103.16,13.0102681]
[1770033960797,4.41724171,103.2,103.17,9.04563831]
[1770033960996,4.41724171,103.21,103.17,13.0102681]
[1770033961388,4.41724171,103.2,103.16,13.0102681]
[1770033964299,4.41724171,103.19,103.15,13.0102681]
[1770033965301,4.41724171,103.19,103.16,9.04563831]
[1770033966504,9.32996145,103.21,103.18,13.0102681]
[1770033966505,4.41724171,103.21,103.18,13.0102681]
[1770033966808,4.41724171,103.23,103.2,13.0102681]
[1770033966984,4.41724171,103.25,103.21,13.0102681]
[1770033967495,4.41724171,103.25,103.21,9.04563831]
[1770033968506,4.3137042,103.24,103.2,13.0102681]
[1770033969087,4.3137042,103.24,103.21,9.04563831]
[1770033969492,4.3137042,103.24,103.2,13.0102681]
[1770033970802,4.3137042,103.23,103.19,13.0102681]
[1770033971496,4.3137042,103.24,103.21,3.96462979]
[1770033971687,4.3137042,103.24,103.2,13.0102681]
[1770033971888,4.3137042,103.24,103.21,9.04563831]
[1770033972287,4.3137042,103.24,103.2,13.0102681]
[1770033972483,4.3137042,103.24,103.21,9.04563831]
[1770033972703,4.3137042,103.24,103.2,9.04563831]
[1770033973596,4.3137042,103.24,103.2,13.0102681]
[1770033974382,4.3137042,103.24,103.2,7.57742953]
[1770033975409,4.3137042,103.24,103.21,3.61279974]
[1770033978607,4.27527085,103.27,103.23,7.57742953]
[1770033978608,4.3137042,103.27,103.23,7.57742953]
[1770033981288,4.3137042,103.26,103.23,3.61279974]
[1770033981492,4.3137042,103.25,103.21,3.61279974]
[1770033981787,4.3137042,103.25,103.21,7.57742953]
[1770033982204,4.3137042,103.25,103.22,3.61279974]
[1770033982790,4.3137042,103.25,103.21,7.57742953]
[1770033983400,4.3137042,103.25,103.23,3.61279974]
[1770033983589,4.3137042,103.26,103.23,3.61279974]
[1770033984395,4.3137042,103.26,103.23,3.61096382]
[1770033987204,4.3137042,103.26,103.22,7.57559361]
[1770033987716,4.3137042,103.26,103.23,3.61096382]
[1770033990908,4.3137042,103.26,103.23,7.57559361]
[1770033991106,4.3137042,103.28,103.25,7.57559361]
[1770033991515,4.3137042,103.28,103.26,3.61096382]
[1770033992022,4.3137042,103.29,103.27,3.61096382]
[1770033992428,4.3137042,103.29,103.26,7.57559361]
[1770033992633,4.3137042,103.29,103.26,3.61096382]
[1770033994232,4.3137042,103.29,103.25,7.57559361]
[1770033994435,4.3137042,103.28,103.24,3.96462979]
[1770033994741,4.3137042,103.28,103.24,7.57559361]
[1770034001643,4.3137042,103.28,103.25,3.61096382]
[1770034003240,4.3137042,103.28,103.24,3.61096382]
[1770034003546,4.43957796,103.27,103.24,7.57559361]
[1770034004439,4.7239011,103.26,103.22,3.96462979]
[1770034004643,4.7239011,103.26,103.22,7.57559361]
[1770034008848,4.7239011,103.26,103.23,3.61096382]
[1770034009246,4.7239011,103.26,103.23,7.57559361]
[1770034009247,4.43957796,103.26,103.23,7.57559361]
[1770034009546,4.1795529,103.28,103.24,7.57559361]
[1770034015148,4.1795529,103.28,103.25,7.57559361]
[1770034015354,4.1795529,103.3,103.27,3.96462979]
[1770034015648,4.1795529,103.3,103.27,7.57559361]
[1770034020158,4.1795529,103.29,103.25,7.57559361]
[1770034021145,4.1795529,103.28,103.24,7.57559361]
[1770034021342,4.1795529,103.26,103.22,3.61096382]
[1770034021541,4.1795529,103.26,103.23,3.96462979]
[1770034021863,4.1795529,103.26,103.23,7.57559361]
[1770034022570,4.1795529,103.25,103.21,7.57559361]
[1770034023066,4.1795529,103.25,103.22,3.61096382]
[1770034023237,4.1795529,103.23,103.19,7.57559361]
[1770034024249,4.1795529,103.23,103.2,7.57559361]
[1770034025970,4.1795529,103.25,103.21,7.57559361]
[1770034026267,4.1795529,103.25,103.22,7.57559361]
[1770034027847,4.1795529,103.25,103.22,3.96462979]
[1770034028061,4.33482861,103.27,103.23,3.61096382]
[1770034028964,4.33482861,103.27,103.23,7.57559361]
[1770034030965,4.33482861,103.27,103.24,3.61096382]
[1770034032548,4.33482861,103.27,103.24,7.57559361]
[1770034036376,104.28432314,103.3,103.27,3.96462979]
[1770034036552,4.33482861,103.31,103.27,7.57559361]
[1770034036868,4.33482861,103.31,103.28,7.57559361]
[1770034037074,10.40199083,103.32,103.29,3.96462979]
[1770034037274,10.40199083,103.32,103.29,7.57559361]
[1770034037467,6.06716222,103.32,103.29,3.61096382]
[1770034037766,6.06716222,103.32,103.3,7.57559361]
[1770034037976,6.06716222,103.32,103.29,7.57559361]
[1770034038267,8.17184688,103.32,103.29,7.57559361]
[1770034038667,3.83701827,103.32,103.3,3.61096382]
[1770034038865,4.53482861,103.33,103.25,40.21616025]
[1770034038866,0.07238848,103.33,103.31,7.57559361]
[1770034039057,0.07238848,103.33,103.32,3.61096382]
[1770034040176,4.63619424,103.35,103.32,3.61096382]
[1770034040369,4.63619424,103.35,103.31,3.61096382]
[1770034040773,4.5,103.34,103.3,3.61096382]
[1770034040961,4.5,103.34,103.31,3.61096382]
[1770034041778,4.5,103.34,103.32,3.61096382]
[1770034042980,4.5,103.34,103.31,3.61096382]
[1770034043690,0.2,103.35,103.33,3.61096382]
[1770034044095,4.7,103.35,103.33,3.61096382]
[1770034044463,4.7,103.35,103.33,3.60417267]
[1770034047890,4.7,103.35,103.3,3.60417267]
[1770034048198,4.7,103.35,103.28,62.08432314]
[1770034048403,4.7,103.35,103.31,3.60417267]
[1770034049202,4.5,103.34,103.28,0.28432314]
[1770034049376,4.5,103.33,103.3,3.60417267]
[1770034049577,4.5,103.34,103.28,0.28432314]
[1770034049791,4.5,103.34,103.31,3.60417267]
[1770034051390,4.5,103.34,103.27,92.97527085]
[1770034051700,4.5,103.34,103.31,3.60417267]
[1770034054080,4.5,103.34,103.27,40.85851539]
[1770034054081,4.5,103.34,103.28,0.14216157]
[1770034054279,4.5,103.34,103.31,3.60417267]
[1770034061296,4.5,103.34,103.3,3.60417267]
[1770034061499,4.7,103.35,103.32,3.60417267]
[1770034061689,4.7,103.35,103.31,3.60417267]
[1770034061884,4.7,103.35,103.32,3.60417267]
[1770034062893,4.7,103.35,103.33,3.60417267]
[1770034063098,0.2,103.35,103.33,3.60417267]
[1770034063400,0.2,103.35,103.34,3.60417267]
[1770034064188,0.2,103.35,103.33,3.60417267]
[1770034064609,0.2,103.35,103.34,3.60417267]
[1770034064995,0.2,103.35,103.33,3.60417267]
[1770034065403,4.7,103.36,103.34,3.60417267]
[1770034066206,4.7,103.36,103.33,3.60417267]
[1770034067810,4.7,103.36,103.3,3.60417267]
[1770034067994,4.5,103.35,103.31,3.60417267]
[1770034068794,4.5,103.35,103.32,3.60417267]
[1770034071101,4.5,103.35,103.31,3.60417267]
[1770034071294,4.5,103.33,103.29,3.60417267]
[1770034071589,4.5,103.32,103.28,3.60417267]
[1770034071801,4.5,103.31,103.27,3.60417267]
[1770034073996,4.5,103.31,103.28,3.60417267]
[1770034074920,4.5,103.31,103.27,3.60417267]
[1770034079203,4.5,103.31,103.28,3.60417267]
[1770034081022,4.5,103.31,103.27,3.60417267]
[1770034081225,4.5,103.31,103.28,3.60417267]
[1770034085309,4.5,103.31,103.25,3.60417267]
[1770034085623,4.5,103.31,103.23,112.91751562]
[1770034085624,4.5,103.3,103.26,3.60417267]
[1770034086009,4.5,103.31,103.28,3.60417267]
[1770034086811,4.5,103.31,103.27,3.60417267]
[1770034088041,4.5,103.3,103.26,3.60417267]
[1770034088211,4.5,103.28,103.24,3.60417267]
[1770034088412,4.5,103.27,103.23,3.60417267]
[1770034089215,4.5,103.27,103.24,3.60417267]
[1770034094032,4.5,103.27,103.25,3.60417267]
[1770034094427,4.5,103.27,103.24,3.60417267]
[1770034097627,4.5,103.27,103.25,3.60417267]
[1770034099236,4.5,103.29,103.26,3.60417267]
[1770034099438,4.5,103.29,103.27,3.60417267]
[1770034100435,4.5,103.31,103.28,3.60417267]
[1770034101343,4.5,103.3,103.23,0.28432314]
[1770034101642,4.5,103.3,103.27,3.60417267]
[1770034103033,4.5,103.3,103.28,3.60417267]
[1770034105331,108.5,103.32,103.29,3.60417267]
[1770034105520,4.5,103.33,103.3,3.60417267]
[1770034106523,4.5,103.33,103.3,3.60602168]
[1770034107341,4.78432314,103.35,103.32,3.60602168]
[1770034107519,4.5,103.35,103.32,3.60602168]
[1770034108229,4.5,103.35,103.27,36.60329638]
[1770034108230,4.5,103.35,103.31,3.60602168]
[1770034110219,4.5,103.34,103.3,3.60602168]
[1770034112952,4.5,103.34,103.31,3.60602168]
[1770034113337,4.5,103.34,103.32,3.60602168]
[1770034115345,4.5,103.35,103.32,3.60602168]
[1770034117552,4.78432314,103.34,103.27,26.92]
[1770034117843,4.78432314,103.34,103.3,3.60602168]
[1770034118057,4.5,103.33,103.3,3.60602168]
[1770034120044,4.5,103.32,103.25,30.50602168]
[1770034120258,4.5,103.31,103.28,3.60602168]
[1770034121335,4.5,103.31,103.27,3.60602168]
[1770034121858,4.5,103.3,103.27,3.60602168]
[1770034122661,4.5,103.3,103.26,3.60602168]
[1770034128665,4.5,103.3,103.27,3.60602168]
[1770034129956,4.5,103.3,103.26,3.60602168]
[1770034130732,4.5,103.3,103.27,3.60602168]
[1770034134244,108.78432314,103.32,103.28,3.60602168]
[1770034134459,108.78432314,103.32,103.29,3.60602168]
[1770034134755,108.5,103.32,103.3,3.60602168]
[1770034135160,108.5,103.32,103.29,3.60602168]
[1770034135845,4.5,103.32,103.29,3.60602168]
[1770034139142,4.5,103.32,103.25,0.14216157]
[1770034139344,4.5,103.31,103.28,3.60602168]
[1770034140357,4.5,103.3,103.24,88.7]
[1770034140561,4.5,103.3,103.26,3.60602168]
[1770034140938,8.10602168,103.3,103.26,3.60602168]
[1770034141165,4.5,103.29,103.26,3.60602168]
[1770034141565,4.5,103.29,103.23,0.28432314]
[1770034141566,4.5,103.28,103.24,3.60602168]
[1770034141867,4.5,103.27,103.24,3.60602168]
[1770034142743,4.5,103.27,103.2,3.80602168]
[1770034142948,4.5,103.25,103.21,3.60602168]
[1770034143671,4.5,103.27,103.23,3.60602168]
[1770034143868,4.5,103.27,103.24,3.60602168]
[1770034144051,4.5,103.27,103.25,3.60602168]
[1770034144560,4.5,103.29,103.26,3.60602168]
[1770034145577,4.5,103.29,103.25,3.60602168]
[1770034145876,4.5,103.29,103.26,3.60602168]
[1770034147471,4.5,103.29,103.25,3.60602168]
[1770034147671,4.5,103.29,103.26,3.60602168]
[1770034148273,4.5,103.3,103.27,3.60602168]
[1770034148448,2.31525246,103.3,103.28,3.60602168]
[1770034149170,3.74818325,103.34,103.29,3.60602168]
[1770034149350,0.14216157,103.33,103.29,3.60602168]
[1770034149551,3.74818325,103.34,103.29,3.60602168]
[1770034150476,4.2602066,103.32,103.29,3.60602168]
[1770034150678,4.2602066,103.33,103.3,3.60602168]
[1770034150979,4.2602066,103.33,103.31,3.60602168]
[1770034159685,4.2602066,103.34,103.32,3.60602168]
[1770034159982,4.2602066,103.35,103.32,5.79076922]
[1770034160687,4.2602066,103.35,103.33,3.60602168]
[1770034161578,4.2602066,103.35,103.32,5.79076922]
[1770034164375,4.2602066,103.35,103.32,3.60602168]
[1770034166278,4.2602066,103.35,103.32,5.79076922]
[1770034166490,4.2602066,103.35,103.33,3.60418481]
[1770034167584,4.4602066,103.36,103.33,5.78893235]
[1770034167967,0.2,103.36,103.34,5.78893235]
[1770034168287,4.4602066,103.36,103.34,3.60418481]
[1770034169084,0.2,103.36,103.35,3.60418481]
[1770034169281,4.4602066,103.38,103.35,5.78893235]
[1770034169486,4.4602066,103.38,103.36,3.60418481]
[1770034170588,4.4602066,103.38,103.37,3.60418481]
[1770034170785,0.2,103.39,103.36,4.32757445]
[1770034170988,0.2,103.39,103.35,3.60418481]
[1770034170989,6.39307025,103.41,103.38,7.93175926]
[1770034171192,6.39307025,103.41,103.39,3.60418481]
[1770034171493,6.39307025,103.41,103.39,7.93175926]
[1770034171687,6.39307025,103.41,103.4,3.60418481]
[1770034171881,6.39307025,103.41,103.39,7.93175926]
[1770034172893,6.39307025,103.41,103.4,3.60418481]
[1770034173985,4.2602066,103.4,103.35,7.93175926]
[1770034174187,4.2602066,103.4,103.3,48.23838472]
[1770034174188,4.2602066,103.4,103.36,7.93175926]
[1770034174393,4.2602066,103.39,103.35,7.93175926]
[1770034174900,4.2602066,103.39,103.31,36.57913116]
[1770034174901,4.2602066,103.39,103.36,7.93175926]
[1770034176088,4.2602066,103.37,103.32,4.32757445]
[1770034176276,4.2602066,103.36,103.32,7.93175926]
[1770034176692,4.2602066,103.36,103.32,3.60418481]
[1770034176891,4.2602066,103.36,103.33,7.93175926]
[1770034177078,4.2602066,103.37,103.34,3.60418481]
[1770034177278,4.2602066,103.37,103.34,7.93175926]
[1770034179209,4.36350904,103.39,103.36,8.02826717]
[1770034180380,4.36350904,103.38,103.34,8.02826717]
[1770034180585,4.36350904,103.38,103.35,8.02826717]
[1770034180806,4.36350904,103.39,103.36,4.42408236]
[1770034180989,4.64783218,103.4,103.36,8.02826717]
[1770034182588,4.36350904,103.39,103.35,8.02826717]
[1770034182891,4.36350904,103.38,103.35,4.42408236]
[1770034183486,4.36350904,103.38,103.34,8.02826717]
[1770034183710,4.36350904,103.37,103.34,8.02826717]
[1770034183903,3.60418481,103.38,103.34,8.02826717]
[1770034183904,4.36350904,103.38,103.35,4.42408236]
[1770034184205,4.36350904,103.38,103.35,8.02826717]
[1770034185412,4.36350904,103.38,103.34,8.02826717]
[1770034186816,4.36350904,103.37,103.34,8.02826717]
[1770034187017,4.36350904,103.37,103.34,4.42408236]
[1770034188512,4.36350904,103.37,103.34,8.02826717]
[1770034194517,4.36350904,103.37,103.3,101.98471289]
[1770034194518,4.52140544,103.4,103.36,7.85564801]
[1770034196120,4.52140544,103.4,103.37,4.2514632]
[1770034196934,4.52140544,103.4,103.36,7.85564801]
[1770034197631,114.13941663,103.41,103.38,4.2514632]
[1770034197632,114.77231412,103.41,103.38,4.2514632]
[1770034197942,10.77231412,103.41,103.38,7.85564801]
[1770034199836,10.77231412,103.41,103.38,4.2514632]
[1770034200037,10.77231412,103.41,103.38,7.85564801]
[1770034200432,4.37924387,103.4,103.37,7.85564801]
[1770034200629,4.37924387,103.39,103.34,4.2514632]
[1770034200833,4.37924387,103.38,103.34,7.85564801]
[1770034201020,4.37924387,103.38,103.35,7.85564801]
[1770034201545,4.37924387,103.38,103.35,4.2514632]
[1770034201733,4.37924387,103.38,103.34,7.85564801]
[1770034201934,4.37924387,103.37,103.34,4.2514632]
[1770034202134,4.37924387,103.37,103.34,7.85564801]
[1770034202541,4.37924387,103.37,103.34,4.2514632]
[1770034204927,4.37924387,103.35,103.31,7.85564801]
[1770034206627,4.37924387,103.35,103.32,7.85564801]
[1770034207034,4.37924387,103.35,103.32,4.2514632]
[1770034207237,4.37924387,103.34,103.31,4.2514632]
[1770034207946,4.37924387,103.34,103.3,7.75692991]
[1770034208541,4.34444208,103.33,103.3,4.1527451]
[1770034209146,4.34444208,103.33,103.29,7.75692991]
[1770034214726,4.34444208,103.33,103.3,3.60418481]
[1770034214926,4.34444208,103.33,103.3,7.75692991]
[1770034215648,4.34444208,103.34,103.31,7.75692991]
[1770034216336,4.34444208,103.34,103.31,4.1527451]
[1770034217031,3.60418481,103.34,103.29,7.75692991]
[1770034217230,4.34444208,103.33,103.29,3.60418481]
[1770034217443,4.34444208,103.33,103.25,44.46425491]
[1770034217444,4.34444208,103.33,103.3,7.75692991]
[1770034217633,4.34444208,103.33,103.3,4.1527451]
[1770034218237,4.34444208,103.33,103.29,7.75692991]
[1770034218731,4.34444208,103.32,103.26,4.1527451]
[1770034218936,4.34444208,103.31,103.28,4.1527451]
[1770034220532,4.34444208,103.3,103.27,4.1527451]
[1770034220744,4.34444208,103.3,103.27,7.75692991]
[1770034220947,4.34444208,103.31,103.28,4.1527451]
[1770034221141,4.34444208,103.31,103.28,7.75692991]
[1770034221653,4.34444208,103.31,103.28,4.1527451]
[1770034222534,4.34444208,103.31,103.28,7.75692991]
[1770034224535,4.34444208,103.31,103.28,4.1527451]
[1770034226059,4.34444208,103.31,103.27,7.75692991]
[1770034226436,4.34444208,103.3,103.27,7.76104739]
[1770034229161,4.34444208,103.31,103.28,4.1527451]
[1770034229366,4.34444208,103.32,103.29,4.1527451]
[1770034231764,4.34444208,103.34,103.3,3.60830229]
[1770034231941,4.34444208,103.34,103.3,7.76104739]
[1770034232269,4.34444208,103.33,103.3,7.76104739]
[1770034233153,4.34444208,103.32,103.29,7.76104739]
[1770034234165,4.34444208,103.31,103.28,4.1527451]
[1770034235144,4.34444208,103.31,103.28,7.76104739]
[1770034237070,4.34444208,103.31,103.28,4.1527451]
[1770034237855,4.43760428,103.32,103.29,4.17314011]
[1770034238375,4.43760428,103.31,103.28,7.7814424]
[1770034239670,4.43760428,103.31,103.28,4.17314011]
[1770034242369,4.43760428,103.3,103.27,7.7814424]
[1770034242574,4.43760428,103.3,103.23,75.96184907]
[1770034242575,4.43760428,103.3,103.26,7.7814424]
[1770034244155,4.43760428,103.28,103.24,7.7814424]
[1770034244547,4.43760428,103.28,103.25,4.17314011]
[1770034245847,4.43760428,103.28,103.26,4.17314011]
[1770034247580,4.43760428,103.29,103.26,7.7814424]
[1770034247959,3.89262543,103.31,103.23,0.2]
[1770034247960,8.04590657,103.31,103.28,4.17314011]
[1770034248161,4.43760428,103.31,103.28,7.7814424]
[1770034250784,4.43760428,103.31,103.28,4.17314011]
[1770034250977,4.43760428,103.31,103.28,7.7814424]
[1770034251990,4.18565363,103.32,103.29,8.00331413]
[1770034252278,3.89262543,103.34,103.3,8.00331413]
[1770034252279,4.3278152,103.34,103.3,8.00331413]
[1770034252486,4.18565363,103.34,103.3,8.00331413]
[1770034256983,4.18565363,103.33,103.3,8.00331413]
[1770034257695,4.18565363,103.33,103.3,4.39501184]
[1770034260578,4.18565363,103.31,103.27,4.39501184]
[1770034260777,4.18565363,103.31,103.28,4.39501184]
[1770034261093,4.18565363,103.32,103.29,4.39501184]
[1770034261296,7.79395592,103.34,103.3,4.39501184]
[1770034261599,4.18565363,103.34,103.3,8.00331413]
[1770034261894,4.18565363,103.34,103.31,4.39501184]
[1770034262772,4.18565363,103.34,103.31,8.00331413]
[1770034263899,4.3278152,103.35,103.32,4.39501184]
[1770034264106,4.3278152,103.35,103.31,8.00331413]
[1770034264270,4.18565363,103.34,103.31,8.00331413]
[1770034266594,4.18565363,103.34,103.31,4.39501184]
[1770034267502,4.18565363,103.32,103.29,8.00331413]
[1770034268074,4.47530214,103.33,103.3,8.06979541]
[1770034271311,4.47530214,103.33,103.3,4.46149312]
[1770034271909,4.47530214,103.33,103.29,8.06979541]
[1770034273407,4.47530214,103.31,103.26,4.46149312]
[1770034273592,4.47530214,103.31,103.27,8.06979541]
[1770034273906,4.61746371,103.3,103.26,4.46149312]
[1770034274091,4.47530214,103.29,103.26,8.06979541]
[1770034274603,4.47530214,103.29,103.26,4.46149312]
[1770034274909,4.47530214,103.29,103.25,8.06979541]
[1770034275210,4.47530214,103.28,103.25,4.46149312]
[1770034275413,4.47530214,103.28,103.24,8.06979541]
[1770034276404,4.47530214,103.27,103.24,4.46149312]
[1770034277104,4.47530214,103.28,103.25,8.06979541]
[1770034277418,4.47530214,103.29,103.26,4.46149312]
[1770034278002,4.47530214,103.29,103.26,8.06979541]
[1770034278406,4.47530214,103.29,103.25,8.06979541]
[1770034278801,4.47530214,103.29,103.26,4.46149312]
[1770034279118,4.47530214,103.29,103.26,8.06979541]
[1770034281917,4.47530214,103.29,103.26,4.46149312]
[1770034293825,4.47530214,103.3,103.26,8.07093801]
[1770034294006,4.47530214,103.3,103.27,4.46149312]
[1770034297428,4.47530214,103.29,103.26,4.46149312]
[1770034300932,4.47530214,103.29,103.24,3.60944489]
[1770034301140,4.47530214,103.29,103.25,4.13852051]
[1770034302339,4.24898412,103.27,103.24,7.7479654]
[1770034302537,4.24898412,103.27,103.24,4.13852051]
[1770034303042,4.24898412,103.27,103.24,7.7479654]
[1770034305515,4.24898412,103.27,103.25,3.60944489]
[1770034305712,108.24898412,103.3,103.27,4.13852051]
[1770034305921,108.24898412,103.3,103.27,7.7479654]
[1770034306245,108.24898412,103.3,103.28,3.60944489]
[1770034306429,4.24898412,103.3,103.28,3.60944489]
[1770034307626,4.24898412,103.3,103.27,3.60944489]
[1770034307937,4.24898412,103.3,103.26,7.7479654]
[1770034308349,4.24898412,103.3,103.27,3.60944489]
[1770034308638,4.17183862,103.29,103.26,4.14771536]
[1770034318630,7.78128351,103.29,103.26,4.14771536]
[1770034318849,4.17183862,103.28,103.26,4.14771536]
[1770034320043,4.17183862,103.28,103.24,7.75716025]
[1770034320245,4.17183862,103.28,103.25,4.14771536]
[1770034320634,4.17183862,103.28,103.26,4.14771536]
[1770034324550,4.45616176,103.3,103.27,4.14771536]
[1770034329156,4.45616176,103.3,103.27,7.75716025]
[1770034329356,4.45616176,103.3,103.27,4.14771536]
[1770034330743,4.10793338,103.31,103.28,4.49084771]
[1770034332759,4.10793338,103.3,103.28,4.49084771]
[1770034333358,4.10793338,103.33,103.3,4.49084771]
[1770034333660,4.10793338,103.33,103.3,8.1002926]
[1770034334563,4.10793338,103.33,103.3,4.49084771]
[1770034336157,4.10793338,103.3,103.26,4.49084771]
[1770034336463,4.10793338,103.3,103.26,8.1002926]
[1770034336663,4.39225652,103.29,103.25,8.1002926]
[1770034336869,4.10793338,103.27,103.25,4.49084771]
[1770034337547,3.60944489,103.28,103.25,4.49084771]
[1770034337864,7.71737827,103.28,103.25,4.49084771]
[1770034338362,4.10793338,103.28,103.25,8.1002926]
[1770034339068,4.10793338,103.3,103.26,4.49084771]
[1770034339356,4.10793338,103.32,103.29,4.49084771]
[1770034339565,4.10793338,103.34,103.31,4.49084771]
[1770034339744,4.10793338,103.35,103.32,4.49084771]
[1770034340360,4.10793338,103.35,103.32,8.1002926]
[1770034340856,4.10793338,103.36,103.32,8.1002926]
[1770034341243,4.10793338,103.35,103.31,4.49084771]
[1770034341444,4.10793338,103.35,103.32,3.60944489]
[1770034341693,4.10793338,103.35,103.31,4.49084771]
[1770034341844,4.10793338,103.35,103.32,8.1002926]
[1770034342364,4.10793338,103.35,103.31,3.60944489]
[1770034342681,4.10793338,103.35,103.31,8.1002926]
[1770034344647,4.10793338,103.35,103.32,8.1002926]
[1770034345268,4.10793338,103.35,103.31,8.1002926]
[1770034346057,4.10793338,103.35,103.31,3.60944489]
[1770034346262,4.10793338,103.35,103.32,8.1002926]
[1770034346970,4.39225652,103.36,103.33,8.1002926]
[1770034347167,4.39225652,103.36,103.33,3.60944489]
[1770034347364,4.39225652,103.36,103.32,8.1002926]
[1770034348368,3.89376803,103.36,103.32,8.1002926]